bitfinex-derivatives/quotes_SOLF0:USTF0_20260217
["timestamp","ask_amount","ask_price","bid_price","bid_amount"]
[1771356739669,21.1837,85.018,84.939,9.97115194]
[1771356739871,5.93343942,84.99,84.939,9.97115194]
[1771356740076,74.12,84.989,84.939,9.97115194]
[1771356740381,84.7155,84.989,84.94,20.57255194]
[1771356740783,84.7155,84.989,84.895,21.2141]
[1771356740784,5.93343942,85.02,84.941,9.97183072]
[1771356740980,74.12,85.019,84.941,9.97183072]
[1771356741782,10.5932,85.007,84.961,9.97183072]
[1771356743781,10.5932,85.007,84.963,20.55384584]
[1771356744584,5.93343942,85.0,84.963,9.95524584]
[1771356745790,74.12,84.999,84.963,9.95524584]
[1771356746285,5.93343942,85.0,84.933,9.95305894]
[1771356746478,5.93343942,85.0,84.969,10.5978]
[1771356748290,5.93343942,85.0,84.962,10.5986]
[1771356748492,5.93343942,85.0,84.933,9.94382906]
[1771356748882,5.93343942,85.0,84.961,10.5989]
[1771356749282,10.5942,84.999,84.948,9.9512913]
[1771356750488,5.93343942,85.0,84.96,10.5989]
[1771356751785,5.93343942,85.0,84.966,10.5981]
[1771356751985,74.12,85.005,84.966,10.5981]
[1771356752196,10.5935,85.004,84.961,9.95033873]
[1771356752792,74.12,85.003,84.963,9.95033873]
[1771356753492,10.5938,85.002,84.964,10.5984]
[1771356753692,74.12,85.003,84.964,10.5984]
[1771356756000,10.5936,85.004,84.964,10.5984]
[1771356756200,5.93343942,85.02,84.932,21.2049]
[1771356756201,10.5943,84.998,84.958,10.5992]
[1771356756697,5.93343942,85.0,84.95,9.94519722]
[1771356756896,5.93343942,85.0,84.964,10.5985]
[1771356757301,74.12,85.002,84.965,9.94541585]
[1771356757496,10.5924,85.013,84.971,10.5975]
[1771356757707,74.12,85.001,84.971,10.5975]
[1771356758103,74.12,85.001,84.965,9.94541585]
[1771356758511,74.12,85.001,84.971,10.5976]
[1771356759812,74.12,85.001,84.965,9.94541585]
[1771356760814,74.12,85.001,84.971,10.5975]
[1771356761608,74.12,85.001,84.976,10.5969]
[1771356761913,5.93343942,85.02,84.965,9.94541585]
[1771356762107,74.12,85.019,84.965,9.94541585]
[1771356762811,74.12,85.019,84.982,10.5962]
[1771356764612,5.93343942,85.02,84.982,20.53130144]
[1771356764910,74.12,85.019,84.99,9.93510144]
[1771356765108,74.12,85.018,84.99,9.93510144]
[1771356765716,74.12,85.018,84.979,10.5965]
[1771356765918,74.12,85.018,84.944,74.12]
[1771356765919,74.12,85.018,84.951,9.93510144]
[1771356766808,5.93343942,85.0,84.951,9.93510144]
[1771356767014,74.12,84.999,84.951,9.93510144]
[1771356768118,1.99490794,84.98,84.951,9.93510144]
[1771356768715,74.12,84.981,84.951,20.53520144]
[1771356770320,74.12,84.981,84.951,9.93510144]
[1771356770722,74.12,84.98,84.951,9.93510144]
[1771356771217,1.99490794,84.96,84.924,9.94087916]
[1771356771418,74.12,84.959,84.91,11.9357871]
[1771356771618,1.99490794,84.95,84.91,9.94087916]
[1771356772418,76.11490794,84.95,84.91,9.94087916]
[1771356773625,76.11490794,84.95,84.912,10.6049]
[1771356775123,1.99490794,84.93,84.896,9.92284006]
[1771356775321,1.99490794,84.92,84.879,9.92284006]
[1771356775722,1.99490794,84.93,84.881,9.92284006]
[1771356775918,74.12,84.934,84.894,9.92284006]
[1771356776223,74.12,84.939,84.894,9.92284006]
[1771356777329,74.12,84.941,84.9,9.92828787]
[1771356777927,5.94530108,84.94,84.861,9.92828787]
[1771356778126,74.12,84.939,84.863,9.92828787]
[1771356779631,10.602,84.937,84.887,10.608]
[1771356779831,74.12,84.936,84.888,10.0005271]
[1771356780223,5.94530108,84.94,84.891,10.0005271]
[1771356780431,74.12,84.939,84.891,10.0005271]
[1771356781835,74.12,84.939,84.895,10.6071]
[1771356782525,10.6024,84.934,84.882,10.6087]
[1771356783935,164.8049,84.996,84.854,21.81318826]
[1771356783936,5.94530108,84.92,84.865,9.98864599]
[1771356784136,74.12,84.919,84.865,9.98864599]
[1771356784332,74.12,84.926,84.865,9.98864599]
[1771356784835,74.12,84.926,84.883,10.12024429]
[1771356785235,10.6021,84.936,84.883,10.12024429]
[1771356785540,74.12,84.935,84.883,10.12024429]
[1771356785838,5.94530108,84.94,84.896,10.607]
[1771356785839,74.12,84.934,84.896,10.607]
[1771356786236,10.6008,84.946,84.896,10.607]
[1771356786434,74.12,84.945,84.896,10.607]
[1771356786835,74.12,84.944,84.896,10.607]
[1771356787031,5.94453378,84.93,84.868,10.27056796]
[1771356787242,5.94453378,84.91,84.853,10.27056796]
[1771356787443,74.12,84.909,84.853,10.27056796]
[1771356787644,84.7254,84.909,84.854,10.6122]
[1771356787937,5.94453378,84.89,84.838,10.27056796]
[1771356788144,5.94453378,84.89,84.838,20.88476796]
[1771356788145,10.608,84.888,84.838,20.88476796]
[1771356788534,5.94453378,84.9,84.86,10.6114]
[1771356789839,5.94453378,84.9,84.853,20.88286796]
[1771356790040,10.6072,84.895,84.838,10.26164241]
[1771356790543,10.6072,84.895,84.851,10.6125]
[1771356790738,5.94453378,84.9,84.851,10.6125]
[1771356791140,74.12,84.899,84.859,10.6116]
[1771356791343,80.06453378,84.9,84.859,10.6116]
[1771356794248,5.94453378,84.9,84.866,10.6107]
[1771356795843,1.99955903,84.89,84.856,10.6119]
[1771356796037,1.99955903,84.88,84.837,10.27071859]
[1771356796738,1.99955903,84.88,84.83,1.99955903]
[1771356796739,21.202,84.944,84.841,10.27767147]
[1771356796938,1.99955903,84.91,84.861,10.27767147]
[1771356797444,1.99955903,84.9,84.861,10.27767147]
[1771356798241,1.99955903,84.9,84.837,74.12]
[1771356798446,1.99955903,84.89,84.841,10.27767147]
[1771356798647,1.99955903,84.9,84.851,10.27767147]
[1771356799346,1.99955903,84.9,84.869,10.23760235]
[1771356799948,74.12,84.916,84.869,10.23760235]
[1771356800455,5.94887389,84.94,84.869,10.23760235]
[1771356800645,74.12,84.929,84.869,10.23760235]
[1771356801649,74.12,84.929,84.884,10.6085]
[1771356801851,5.94887389,84.95,84.869,10.23760235]
[1771356802052,74.12,84.949,84.869,10.23760235]
[1771356803055,5.94887389,84.95,84.881,10.22449042]
[1771356803754,10.86074908,85.041,84.907,10.22449042]
[1771356804054,342.6838,85.059,84.9,5.94887389]
[1771356804055,5.94887389,84.99,84.909,10.22449042]
[1771356804255,74.12,84.989,84.909,10.22449042]
[1771356804451,5.94887389,84.99,84.932,10.22449042]
[1771356805056,5.94887389,85.0,84.943,10.6011]
[1771356805251,5.94887389,85.0,84.92,5.94887389]
[1771356805252,5.94887389,85.0,84.944,10.22782872]
[1771356806651,5.94887389,85.0,84.956,10.5995]
[1771356808359,5.94887389,85.0,84.945,10.6008]
[1771356809551,5.94887389,85.0,84.953,10.5998]
[1771356809755,5.94887389,85.0,84.942,10.17833323]
[1771356810358,5.94887389,85.0,84.952,10.6]
[1771356813158,32.03084908,85.073,84.928,74.14]
[1771356813159,21.1701,85.073,84.959,10.20616048]
[1771356813462,5.94887389,85.03,84.959,10.20616048]
[1771356813758,5.94887389,85.03,84.981,10.5963]
[1771356814360,5.94887389,85.03,84.959,10.20616048]
[1771356814361,10.5905,85.028,84.973,10.5974]
[1771356816650,5.94887389,85.03,84.98,10.5964]
[1771356816849,10.5895,85.037,84.98,10.5964]
[1771356817257,5.94887389,85.03,84.98,10.5964]
[1771356817857,5.94887389,85.03,84.981,10.18845478]
[1771356818061,5.94887389,85.03,84.987,20.78405478]
[1771356818965,16.53917389,85.03,84.987,10.18845478]
[1771356823769,10.5894,85.038,84.987,10.18845478]
[1771356824666,10.5894,85.038,84.995,10.5945]
[1771356825362,10.5894,85.038,84.996,10.18547392]
[1771356825863,1.99280377,85.03,84.996,10.18547392]
[1771356826068,1.99280377,85.02,84.995,10.5945]
[1771356826267,1.99280377,85.01,84.966,10.18547392]
[1771356826470,1.99280377,84.99,84.949,10.18547392]
[1771356826662,1.99280377,84.98,84.93,1.99280377]
[1771356826863,1.99280377,84.96,84.931,10.17025581]
[1771356827171,1.99280377,84.96,84.911,10.17025581]
[1771356827370,1.99280377,84.97,84.921,10.17025581]
[1771356827869,1.99280377,84.96,84.921,10.17025581]
[1771356828771,1.99280377,84.96,84.927,10.603]
[1771356828973,1.99280377,84.98,84.93,1.99280377]
[1771356829167,1.99280377,84.99,84.941,10.07477309]
[1771356829876,5.93732015,85.0,84.941,10.07477309]
[1771356830076,5.93732015,84.98,84.923,10.07477309]
[1771356831676,5.93732015,84.98,84.939,10.6015]
[1771356832073,5.93732015,84.98,84.923,10.07477309]
[1771356832872,74.12,84.993,84.923,10.07477309]
[1771356833273,5.93732015,85.0,84.923,10.07477309]
[1771356833474,10.5948,84.994,84.935,10.6021]
[1771356834578,10.5948,84.994,84.941,10.6013]
[1771356835379,5.93732015,84.98,84.941,10.6013]
[1771356840782,5.93732015,84.98,84.933,10.6024]
[1771356841382,5.93732015,84.98,84.939,10.6015]
[1771356841583,5.93732015,84.98,84.938,10.0757998]
[1771356842384,10.5935,85.005,84.952,10.0757998]
[1771356842587,5.93732015,85.01,84.952,10.0757998]
[1771356842786,74.12,85.009,84.921,10.05668656]
[1771356842977,5.93732015,84.99,84.921,10.05668656]
[1771356843180,5.93732015,84.99,84.941,10.6013]
[1771356843786,10.5954,84.989,84.941,10.6013]
[1771356846790,10.5954,84.989,84.947,10.6006]
[1771356847692,5.93732015,84.97,84.911,10.05928399]
[1771356847891,5.94356021,84.96,84.911,10.05928399]
[1771356848883,5.94356021,84.96,84.917,20.67650652]
[1771356849493,74.14,84.975,84.925,10.07220652]
[1771356849797,5.94356021,85.0,84.925,10.07220652]
[1771356849987,1.99524116,84.98,84.931,10.07220652]
[1771356850591,1.99524116,84.98,84.945,10.07220652]
[1771356851292,1.99524116,84.98,84.946,10.6006]
[1771356851493,1.99524116,84.98,84.946,20.64335131]
[1771356852589,1.99524116,84.98,84.947,10.04275131]
[1771356853589,10.86074908,85.032,84.947,10.04275131]
[1771356853794,1.99524116,84.99,84.947,10.04275131]
[1771356854188,8.49466785,85.029,84.947,10.04275131]
[1771356854393,1.99524116,85.0,84.966,10.5982]
[1771356854591,1.99524116,85.01,84.967,10.04796298]
[1771356854993,1.99524116,85.01,84.969,10.0453963]
[1771356855690,1.99524116,85.0,84.969,10.0453963]
[1771356855892,1.99524116,85.01,84.97,10.5977]
[1771356856094,1.99524116,85.01,84.971,10.0453963]
[1771356856485,1.99524116,85.02,84.984,10.596]
[1771356856885,1.99524116,85.02,84.971,10.0453963]
[1771356856886,185.49688026,85.053,84.985,10.05089384]
[1771356857097,1.99524116,85.02,84.985,10.05089384]
[1771356857699,1.99524116,85.02,84.991,10.5951]
[1771356858398,1.99524116,85.01,84.983,10.5961]
[1771356859497,74.14,85.046,84.983,10.5961]
[1771356859498,1.99524116,85.02,84.983,10.5961]
[1771356860195,1.99524116,85.02,84.97,12.046135]
[1771356860400,1.99524116,85.02,84.991,10.5951]
[1771356861004,1.99524116,85.03,84.997,10.0622433]
[1771356861303,185.49688026,85.053,84.997,10.0622433]
[1771356861304,1.99524116,85.04,84.997,10.0622433]
[1771356861796,1.99524116,85.03,84.997,10.0622433]
[1771356862604,1.99524116,85.03,84.983,10.0622433]
[1771356863197,1.99524116,85.02,84.983,10.0622433]
[1771356863700,1.99524116,85.02,84.99,10.5952]
[1771356864098,1.99524116,85.02,84.983,10.0622433]
[1771356864402,1.99524116,85.02,84.984,10.5959]
[1771356864997,74.12,85.04,84.984,10.5959]
[1771356865197,74.12,85.04,84.983,10.0622433]
[1771356865198,1.99524116,85.03,84.995,10.5946]
[1771356866501,1.99524116,85.03,84.985,10.06762681]
[1771356866502,1.99524116,85.01,84.97,10.06762681]
[1771356866705,4.116e-05,85.0,84.97,10.06762681]
[1771356866904,74.12,85.026,84.97,10.06762681]
[1771356866905,1.99524116,85.01,84.97,10.06762681]
[1771356867102,1.99524116,85.02,84.982,10.05178345]
[1771356868398,1.99524116,85.02,84.986,10.5957]
[1771356870798,1.99524116,85.01,84.982,10.05178345]
[1771356871707,74.12,85.034,84.985,10.04430333]
[1771356871902,1.99524116,85.02,84.985,10.04430333]
[1771356872707,1.99524116,85.02,84.987,10.5955]
[1771356872901,1.99524116,85.01,84.961,10.04402974]
[1771356874708,1.99524116,85.01,84.98,10.5965]
[1771356875603,1.99524116,85.0,84.962,10.5987]
[1771356875910,1.99524116,84.99,84.962,10.5987]
[1771356876303,1.99524116,84.98,84.945,10.0442705]
[1771356876798,1.99524116,84.98,84.95,10.6002]
[1771356877109,1.99524116,84.98,84.945,10.0442705]
[1771356877310,2.04744422,85.051,84.921,10.04601371]
[1771356877311,1.99524116,84.97,84.921,10.04601371]
[1771356877904,1.99524116,84.95,84.921,10.04601371]
[1771356879307,4.116e-05,84.95,84.928,10.603]
[1771356882608,1.99524116,84.96,84.929,10.02835631]
[1771356882815,1.99524116,84.96,84.935,10.602]
[1771356883014,1.99524116,84.96,84.929,10.02835631]
[1771356883313,1.99524116,84.95,84.929,10.02835631]
[1771356884309,74.12,84.992,84.929,10.02835631]
[1771356884310,1.99524116,84.96,84.931,10.6026]
[1771356884908,1.99524116,84.96,84.935,10.602]
[1771356885512,1.99524116,84.96,84.927,10.603]
[1771356885715,74.12,84.992,84.927,10.603]
[1771356885716,1.99524116,84.95,84.927,10.603]
[1771356890715,1.99524116,84.96,84.937,10.02949714]
[1771356893118,1.99524116,84.96,84.938,10.6017]
[1771356893421,1.99524116,84.97,84.939,10.02680501]
[1771356893620,1.99524116,84.98,84.947,10.02680501]
[1771356894422,1.99524116,84.97,84.947,10.02680501]
[1771356894721,1.99524116,84.97,84.949,10.6004]
[1771356895020,1.99524116,84.97,84.921,10.01972089]
[1771356895818,1.99524116,84.97,84.91,1.99524116]
[1771356895819,1.99524116,84.97,84.941,10.6014]
[1771356896414,1.99524116,84.97,84.947,10.6006]
[1771356896723,1.99524116,84.97,84.933,10.01972089]
[1771356897722,1.99524116,84.97,84.945,10.6008]
[1771356897917,1.99524116,84.97,84.933,10.01972089]
[1771356898123,1.99524116,84.96,84.933,10.01972089]
[1771356898324,74.14,84.993,84.903,10.02077918]
[1771356898628,1.99524116,84.93,84.888,10.02077918]
[1771356898827,1.99524116,84.91,84.889,10.00352731]
[1771356899026,10.86074908,84.991,84.889,10.00352731]
[1771356899221,1.99524116,84.94,84.901,10.00352731]
[1771356899423,74.14,84.99,84.901,10.00352731]
[1771356899424,1.99524116,84.93,84.901,10.00352731]
[1771356900425,10.86074908,85.003,84.901,10.00352731]
[1771356900725,10.86074908,85.003,84.9,1.99524116]
[1771356900726,1.99524116,84.97,84.921,10.00352731]
[1771356900927,1.99524116,84.98,84.939,9.99474576]
[1771356901327,1.99524116,84.97,84.939,9.99474576]
[1771356901726,1.99524116,84.96,84.925,9.99474576]
[1771356901929,4.116e-05,84.95,84.925,9.99474576]
[1771356902130,1.99524116,84.96,84.925,9.99474576]
[1771356903735,1.99524116,84.96,84.926,10.6032]
[1771356905235,1.99524116,84.96,84.927,9.99369489]
[1771356905635,1.99524116,84.95,84.913,9.99369489]
[1771356906837,1.99524116,84.96,84.915,9.9941925]
[1771356907036,1.99524116,84.97,84.921,9.9941925]
[1771356907241,1.99524116,84.98,84.94,9.9941925]
[1771356908749,1.99524116,84.98,84.943,9.97593383]
[1771356910042,1.99513246,84.98,84.943,9.97593383]
[1771356910347,1.99513246,84.98,84.945,9.97593383]
[1771356913049,1.99513246,84.98,84.944,10.601]
[1771356913050,1.99513246,84.96,84.928,9.98550895]
[1771356913440,1.99513246,84.95,84.928,9.98550895]
[1771356914046,1.99513246,84.95,84.914,9.98550895]
[1771356914244,1.99513246,84.93,84.898,9.98550895]
[1771356914451,1.99513246,84.92,84.871,9.98550895]
[1771356914947,1.99513246,84.92,84.879,9.9976027]
[1771356915347,1.99513246,84.93,84.881,9.9976027]
[1771356916051,5.94548742,84.95,84.881,9.9976027]
[1771356916749,10.6012,84.943,84.894,10.00074609]
[1771356917150,5.94548742,84.96,84.894,10.00074609]
[1771356918749,10.6001,84.952,84.904,10.00410754]
[1771356921756,10.6008,84.946,84.904,10.00410754]
[1771356922556,10.5999,84.953,84.904,10.00410754]
[1771356923653,5.94548742,84.96,84.904,10.00410754]
[1771356923956,5.94548742,84.96,84.881,10.00303185]
[1771356924860,10.6015,84.94,84.89,10.00276233]
[1771356925658,10.6015,84.94,84.892,10.00276233]
[1771356926857,10.6015,84.94,84.897,20.60956233]
[1771356928155,10.6015,84.94,84.897,10.00276233]
[1771356928356,10.6015,84.94,84.868,74.14]
[1771356928357,5.94548742,84.94,84.869,10.03345904]
[1771356928766,5.94548742,84.94,84.883,10.03612971]
[1771356929865,10.6028,84.93,84.883,20.64462971]
[1771356930364,10.6028,84.93,84.884,10.03612971]
[1771356930963,10.6042,84.919,84.872,10.6099]
[1771356931158,5.94548742,84.9,84.855,10.03624894]
[1771356931362,5.94548742,84.92,84.855,10.03624894]
[1771356931561,5.94548742,84.92,84.872,10.03624894]
[1771356931760,5.94548742,84.94,84.872,10.03624894]
[1771356932754,10.6041,84.92,84.876,10.03681536]
[1771356934464,5.94548742,84.94,84.876,10.03681536]
[1771356934465,10.6049,84.913,84.876,10.03681536]
[1771356935064,10.6041,84.92,84.876,10.03681536]
[1771356936865,16.54958742,84.92,84.876,10.03681536]
[1771356937870,12.60245224,84.92,84.876,10.03681536]
[1771356939577,1.99835224,84.91,84.876,10.03681536]
[1771356943161,1.99835224,84.91,84.864,10.6109]
[1771356943368,1.99835224,84.9,84.862,9.9856626]
[1771356944166,1.99835224,84.9,84.823,21.2321]
[1771356944367,14.55089783,84.97,84.819,9.9856626]
[1771356944368,1.99835224,84.86,84.819,9.9856626]
[1771356944672,164.9025,84.946,84.831,9.9856626]
[1771356944673,1.99835224,84.88,84.831,9.9856626]
[1771356945472,1.99835224,84.87,84.831,9.9856626]
[1771356945676,1.99835224,84.86,84.831,9.9856626]
[1771356947671,1.99835224,84.87,84.831,9.9856626]
[1771356948578,1.99835224,84.88,84.831,9.9856626]
[1771356950076,1.99835224,84.84,84.793,9.80054816]
[1771356950374,1.99835224,84.84,84.803,9.80054816]
[1771356951677,1.99835224,84.84,84.78,1.99835224]
[1771356951877,1.99835224,84.81,84.771,9.79818581]
[1771356952676,1.99835224,84.8,84.754,9.79818581]
[1771356952878,1.99835224,84.79,84.754,9.79818581]
[1771356953873,74.14,84.825,84.754,9.79818581]
[1771356953874,10.6192,84.799,84.754,9.79818581]
[1771356955980,5.96490375,84.81,84.711,2.05234663]
[1771356956278,10.6222,84.775,84.714,9.92404924]
[1771356956580,5.96490375,84.78,84.714,9.92404924]
[1771356956780,5.96490375,84.78,84.716,9.97507008]
[1771356956977,5.96490375,84.76,84.716,9.97507008]
[1771356957169,5.96490375,84.76,84.7,9.97507008]
[1771356957374,165.1928,84.797,84.7,9.97507008]
[1771356957375,10.6268,84.738,84.7,9.97507008]
[1771356957578,5.96490375,84.74,84.671,9.97507008]
[1771356957880,10.628,84.728,84.671,9.97507008]
[1771356959181,165.2128,84.786,84.673,9.79938859]
[1771356959380,5.96490375,84.74,84.673,9.79938859]
[1771356960684,10.6272,84.735,84.673,9.79938859]
[1771356960883,5.96490375,84.74,84.673,9.79938859]
[1771356961985,5.96490375,84.74,84.684,9.76757514]
[1771356962679,5.96490375,84.74,84.651,74.14]
[1771356962882,5.96490375,84.7,84.652,9.79882565]
[1771356963580,5.96490375,84.72,84.652,9.79882565]
[1771356964272,10.6298,84.715,84.652,9.79882565]
[1771356964477,5.96490375,84.72,84.652,9.79882565]
[1771356964882,10.6292,84.719,84.653,9.8295621]
[1771356965082,5.96490375,84.72,84.653,9.8295621]
[1771356966585,10.6293,84.718,84.653,9.8295621]
[1771356967080,5.96490375,84.72,84.653,9.8295621]
[1771356967981,10.6302,84.711,84.653,9.8295621]
[1771356968283,5.96490375,84.72,84.653,9.8295621]
[1771356968683,10.6301,84.712,84.653,9.8295621]
[1771356970586,5.96490375,84.7,84.597,17.37484365]
[1771356970775,5.96490375,84.67,84.617,9.94347013]
[1771356972082,5.98487852,84.67,84.617,9.94347013]
[1771356972686,10.6368,84.659,84.617,9.94347013]
[1771356974084,10.6367,84.659,84.617,9.94347013]
[1771356974987,16.62027852,84.67,84.617,9.94347013]
[1771356975779,10.6354,84.67,84.617,9.94347013]
[1771356976589,10.6342,84.679,84.619,9.99444881]
[1771356976785,5.98487852,84.68,84.619,9.99444881]
[1771356977586,74.16,84.699,84.619,9.99444881]
[1771356977889,5.98487852,84.7,84.619,9.99444881]
[1771356978490,5.98487852,84.7,84.621,10.02039191]
[1771356978695,10.6342,84.68,84.63,10.02084122]
[1771356978892,5.98487852,84.7,84.63,10.02084122]
[1771356979286,5.98487852,84.68,84.63,10.02084122]
[1771356979591,80.14487852,84.7,84.63,10.02084122]
[1771356980790,10.6342,84.679,84.63,10.02084122]
[1771356982787,10.6353,84.671,84.63,10.02084122]
[1771356982978,5.98487852,84.68,84.63,10.02084122]
[1771356983292,10.636,84.665,84.63,10.02084122]
[1771356983988,5.98487852,84.66,84.609,10.02944031]
[1771356984387,10.6383,84.647,84.609,10.02944031]
[1771356985786,10.6392,84.64,84.598,10.03077255]
[1771356987095,10.6372,84.655,84.605,10.02804924]
[1771356988696,10.6372,84.655,84.608,10.02804924]
[1771356989098,10.6362,84.663,84.608,10.02804924]
[1771356989293,5.98487852,84.67,84.608,10.02804924]
[1771356991193,10.6359,84.666,84.611,9.97944675]
[1771356991399,21.2658,84.69,84.611,9.97944675]
[1771356991400,5.98487852,84.69,84.611,9.97944675]
[1771356992795,10.6338,84.682,84.63,9.966256]
[1771356993099,21.2551,84.733,84.63,9.966256]
[1771356993300,10.6318,84.698,84.643,9.966256]
[1771356995102,10.6329,84.69,84.643,9.966256]
[1771356995298,10.6329,84.69,84.6,5.98487852]
[1771356995299,5.98487852,84.69,84.628,9.97721318]
[1771356996693,10.6352,84.672,84.628,9.97721318]
[1771356998895,10.636,84.665,84.628,9.97721318]
[1771356999103,74.18,84.685,84.628,9.97721318]
[1771356999292,5.98487852,84.68,84.628,9.97721318]
[1771357000795,10.6354,84.67,84.628,9.97721318]
[1771357002102,10.6344,84.677,84.628,9.97721318]
[1771357002295,74.18,84.698,84.628,9.97721318]
[1771357002501,10.6344,84.677,84.628,9.97721318]
[1771357002901,5.98487852,84.7,84.628,9.97721318]
[1771357003099,5.98487852,84.7,84.645,9.98743848]
[1771357003907,10.6325,84.693,84.646,10.6383]
[1771357004103,10.6325,84.693,84.647,9.98743848]
[1771357004501,10.6312,84.703,84.647,9.98743848]
[1771357004907,74.18,84.717,84.647,9.98743848]
[1771357005109,10.631,84.705,84.661,9.98579883]
[1771357005303,74.18,84.737,84.661,9.98579883]
[1771357005703,10.6284,84.725,84.671,9.98579883]
[1771357006001,5.98487852,84.74,84.671,9.98579883]
[1771357006204,10.627,84.736,84.677,9.98579883]
[1771357006605,21.245,84.773,84.677,9.98579883]
[1771357006606,5.98487852,84.76,84.677,9.98579883]
[1771357006798,74.18,84.759,84.677,9.98579883]
[1771357006998,8.55979862,84.758,84.677,9.98579883]
[1771357007198,8.55979862,84.758,84.696,9.97744915]
[1771357007400,5.98487852,84.76,84.696,9.97744915]
[1771357008904,5.98487852,84.76,84.705,9.9743971]
[1771357009104,10.6236,84.764,84.705,9.9743971]
[1771357009306,5.98487852,84.78,84.705,9.9743971]
[1771357009507,74.18,84.779,84.705,9.9743971]
[1771357010111,10.6242,84.759,84.706,10.6307]
[1771357010310,74.18,84.779,84.707,9.9743971]
[1771357010912,5.98487852,84.78,84.707,9.9743971]
[1771357011108,74.18,84.779,84.707,9.9743971]
[1771357011308,10.6232,84.767,84.709,9.98361418]
[1771357011911,10.6242,84.759,84.709,9.98361418]
[1771357012211,5.98487852,84.78,84.709,9.98361418]
[1771357012412,74.18,84.779,84.709,9.98361418]
[1771357012612,10.6232,84.767,84.709,9.98361418]
[1771357013513,19.07500737,84.817,84.709,9.98361418]
[1771357013514,10.6242,84.759,84.709,9.98361418]
[1771357014109,5.98487852,84.76,84.695,9.98109092]
[1771357015714,10.626,84.744,84.695,9.98109092]
[1771357018413,5.98487852,84.74,84.681,9.96952163]
[1771357018814,10.6268,84.738,84.683,9.96647423]
[1771357019412,5.98487852,84.74,84.683,9.96647423]
[1771357020010,10.6275,84.732,84.683,9.96647423]
[1771357020206,5.98487852,84.74,84.683,9.96647423]
[1771357020412,5.98487852,84.76,84.683,9.96647423]
[1771357021618,5.98487852,84.76,84.695,9.96261561]
[1771357022118,74.2,84.765,84.695,9.96261561]
[1771357022318,5.98487852,84.75,84.695,9.96261561]
[1771357023723,21.2411,84.788,84.697,9.96269167]
[1771357023920,5.98487852,84.77,84.697,9.96269167]
[1771357024818,5.98487852,84.75,84.697,9.96269167]
[1771357025016,10.6279,84.729,84.682,9.96349003]
[1771357025322,10.6279,84.729,84.632,21.60777341]
[1771357025323,74.2,84.729,84.667,9.96349003]
[1771357025520,10.6311,84.704,84.667,9.96349003]
[1771357027920,10.6297,84.715,84.667,9.96349003]
[1771357031625,10.6285,84.724,84.67,9.96575812]
[1771357032230,10.6285,84.724,84.673,9.96575812]
[1771357032626,5.98487852,84.72,84.673,9.96575812]
[1771357033820,10.6304,84.709,84.673,9.96575812]
[1771357034824,5.97625052,84.73,84.673,9.96575812]
[1771357034825,10.6296,84.716,84.673,9.96575812]
[1771357035627,10.6304,84.71,84.673,9.96575812]
[1771357036131,10.6282,84.727,84.682,9.9678949]
[1771357036335,5.97625052,84.74,84.682,9.9678949]
[1771357036832,10.6295,84.717,84.682,9.9678949]
[1771357037226,5.97625052,84.74,84.682,9.9678949]
[1771357038433,5.97625052,84.72,84.668,9.97246413]
[1771357039432,16.60535052,84.72,84.669,10.6354]
[1771357041731,5.97625052,84.72,84.675,10.6346]
[1771357042834,5.97625052,84.72,84.668,20.60796413]
[1771357043034,10.6292,84.719,84.668,9.97246413]
[1771357044033,2.0082043,84.71,84.668,9.97246413]
[1771357045732,2.0082043,84.71,84.67,20.62944356]
[1771357045935,2.0082043,84.71,84.671,9.99424356]
[1771357049634,10.6305,84.709,84.671,9.99424356]
[1771357049839,2.0082043,84.7,84.659,9.98015933]
[1771357051344,10.6317,84.699,84.659,9.98015933]
[1771357051546,10.6317,84.699,84.66,9.98170123]
[1771357051740,2.0082043,84.71,84.66,9.98170123]
[1771357051946,10.6299,84.713,84.66,11.98990553]
[1771357052146,10.6299,84.713,84.67,9.98170123]
[1771357053047,2.0082043,84.71,84.67,9.98170123]
[1771357055457,10.59935606,84.762,84.64,95.80777341]
[1771357055458,2.0082043,84.73,84.681,9.96990909]
[1771357055754,2.0082043,84.74,84.681,9.96990909]
[1771357055951,2.0082043,84.74,84.691,9.96990909]
[1771357056358,2.0082043,84.74,84.695,9.96990909]
[1771357056856,2.0082043,84.73,84.695,9.96990909]
[1771357057259,2.0082043,84.74,84.699,9.98915266]
[1771357059148,10.626,84.745,84.699,9.98915266]
[1771357059149,2.0082043,84.73,84.699,9.98915266]
[1771357059457,2.0082043,84.72,84.681,9.9906117]